fUSD/lending_fUSD_20240101
["ID","MTS","AMOUNT","RATE_DAILY","PERIOD"]
[309780677,1704117040782,-5132.56283445,0.000279,2]
[309780678,1704117040793,-177.40465776,0.000279,2]
[309780679,1704117040803,-155.0,0.00027928,2]
[309780680,1704117040812,-160.58,0.00027932,2]
[309780681,1704117040822,-157.26,0.00027941,2]
[309780682,1704117040832,-4036.62,0.00027945,2]
[309780684,1704117040843,-644.72245133,0.00027996,2]
[309780686,1704117040852,-341.50508812,0.00027996,2]
[309780688,1704117040862,-265.8210761,0.00027996,2]
[309780690,1704117040872,-155.0,0.00027996,2]
[309780692,1704117040881,-2051.57756355,0.00027996,2]
[309780694,1704117040891,-936.6789155,0.00027996,2]
[309780696,1704117040901,-336.08709316,0.00027996,2]
[309780697,1704117040910,-578.97126269,0.00027996,2]
[309780698,1704117040920,-1940.84899904,0.00027996,2]
[309780699,1704117040930,-1056.1158152,0.00027997,2]
[309780700,1704117040940,-625.255,0.00027997,2]
[309780701,1704117040949,-16227.52165535,0.00027997,2]
[309780702,1704117040960,-12349.05436299,0.00027998,2]
[309780703,1704117040970,-2605.73119931,0.00027998,2]
[309780704,1704117040979,-207.82033567,0.00027999,2]
[309780705,1704117040989,-371550.00809357,0.00028,3]
[309780706,1704117040999,-305.10993716,0.00028,2]
[309780707,1704117041014,-203.05400973,0.00028,2]
[309780708,1704117041023,-157.34152932,0.00028008,2]
[309780709,1704117041034,-157.47,0.00028048,2]
[309780710,1704117041043,-190.56,0.00028081,2]
[309780711,1704117041054,-160.58,0.0002811,2]
[309780712,1704117041064,-157.26,0.00028199,2]
[309780713,1704117041075,-190.56,0.0002822,2]
[309780714,1704117041085,-308.27,0.00028248,2]
[309780715,1704117041095,-160.58,0.00028288,2]
[309780716,1704117041105,-175.64,0.00028288,2]
[309780717,1704117041114,-190.56,0.00028358,2]
[309780718,1704117041124,-443.04,0.00028383,2]
[309780719,1704117041134,-591.0,0.00028411,2]
[309780720,1704117041143,-157.26,0.00028458,2]
[309780721,1704117041153,-160.58,0.00028466,2]
[309780722,1704117041163,-1357.0610513,0.0002848,2]
[309780723,1704117041172,-190.56,0.00028496,2]
[309780724,1704117041182,-591.0,0.00028561,2]
[309780725,1704117041191,-190.56,0.00028635,2]
[309780726,1704117041200,-160.58,0.00028644,2]
[309780727,1704117041210,-591.0,0.0002871,2]
[309780728,1704117041219,-483.44,0.00028713,2]
[309780729,1704117041229,-157.26,0.00028717,2]
[309780730,1704117041239,-635.72,0.00028725,2]
[309780731,1704117041248,-1357.0610513,0.00028758,2]
[309780732,1704117041258,-1357.0610513,0.0002877,2]
[309780733,1704117041268,-190.56,0.00028773,2]
[309780734,1704117041277,-160.58,0.00028822,2]
[309780735,1704117041287,-175.64,0.00028836,2]
[309780736,1704117041297,-195.07122015,0.0002885,2]
[309780737,1704117041307,-591.0,0.0002886,2]
[309780738,1704117041317,-190.56,0.00028911,2]
[309780739,1704117041328,-157.26,0.00028975,2]
[309780740,1704117041337,-5132.56283437,0.00028997,2]
[309780741,1704117041347,-500.0,0.00029,3]
[309780742,1704117041356,-591.0,0.00029009,2]
[309780743,1704117041366,-470.98,0.0002905,2]
[309780744,1704117041375,-529.02,0.00029139,2]
[309780745,1704117041385,-591.0,0.00029159,2]
[309780746,1704117041395,-308.27,0.00029221,2]
[309780747,1704117041404,-1357.0610513,0.00029228,2]
[309780748,1704117041414,-157.26,0.00029234,2]
[309780749,1704117041423,-591.0,0.00029308,2]
[309780750,1704117041433,-2589.0,0.00029315,2]
[309780751,1704117041443,-2589.0,0.00029315,10]
[309780752,1704117041454,-2589.0,0.00029315,19]
[309780753,1704117041464,-2589.0,0.00029315,28]
[309780754,1704117041476,-1357.0610513,0.0002935,2]
[309780755,1704117041486,-157.34152932,0.00029366,2]
[309780756,1704117041496,-175.64,0.00029384,2]
[309780757,1704117041506,-591.0,0.00029458,2]
[309780758,1704117041517,-157.26,0.00029493,2]
[309780759,1704117041527,-294.51798002,0.0002952,4]
[309780760,1704117041538,-591.0,0.00029608,2]
[309780761,1704117041548,-1357.0610513,0.00029672,2]
[309780762,1704117041560,-635.72,0.00029703,2]
[309780763,1704117041571,-157.26,0.00029752,2]
[309780764,1704117041582,-591.0,0.00029757,2]
[309780765,1704117041595,-177.74,0.00029843,2]
[309780766,1704117041605,-195.07122015,0.000299,2]
[309780767,1704117041615,-591.0,0.00029907,2]
[309780768,1704117041625,-345.21,0.00029932,2]
[309780769,1704117041639,-63299.693473,0.00029999,2]
[309780770,1704117041649,-614.19605834,0.0003,2]
[309780771,1704117041658,-9607.29037747,0.0003,2]
[309780772,1704117041668,-38297.17646771,0.0003,4]
[309780773,1704117041683,-457.98520887,0.0003,4]
[309780774,1704117041701,-17445.91105775,0.0003,4]
[309780775,1704117041714,-1000.0,0.0003,2]
[309780776,1704117041724,-3000.0,0.0003,2]
[309780777,1704117041734,-157.26,0.0003001,2]
[309780778,1704117041745,-483.44,0.00030018,2]
[309780779,1704117041755,-591.0,0.00030056,2]
[309780780,1704117041767,-5132.56283437,0.00030094,2]
[309780781,1704117041777,-206.44792074,0.00030095,4]
[309780782,1704117041788,-242.25712505,0.00030095,4]
[309780783,1704117041798,-451.70895712,0.00030095,4]
[309780784,1704117041807,-155.86245513,0.00030096,4]
[309780785,1704117041817,-294.49505964,0.000301,2]
[309780786,1704117041828,-153.92,0.00030137,2]
[309780787,1704117041839,-10000.0,0.00030137,2]
[309780788,1704117041848,-308.27,0.00030194,2]
[309780789,1704117041859,-591.0,0.00030206,2]
[309780790,1704117041869,-157.26,0.00030269,2]
[309780791,1704117041879,-205.0,0.00030273,7]
[309780792,1704117041889,-591.0,0.00030355,2]
[309780793,1704117041899,-591.0,0.00030505,2]
[309780794,1704117041908,-157.26,0.00030528,2]
[309780795,1704117041919,-443.04,0.00030647,2]
[309780796,1704117041929,-591.0,0.00030654,2]
[309780797,1704117041938,-635.72,0.00030682,2]
[309780798,1704117041948,-157.34152932,0.00030725,2]
[309780799,1704117041958,-1000.0,0.00030746,2]
[309780800,1704117041968,-157.26,0.00030786,2]
[309780801,1704117041978,-500.0,0.000308,2]
[309780802,1704117041987,-591.0,0.00030804,2]
[309780803,1704117041997,-591.0,0.00030953,2]
[309780804,1704117042007,-550.0,0.00031,3]
[309780805,1704117042017,-157.26,0.00031045,2]
[309780806,1704117042027,-591.0,0.00031103,2]
[309780807,1704117042037,-1200.0,0.00031115,2]
[309780808,1704117042048,-153.92,0.00031133,2]
[309780809,1704117042058,-5132.56283437,0.00031191,2]
[309780810,1704117042068,-3000.0,0.0003122,2]
[309780811,1704117042079,-294.51798002,0.00031251,5]
[309780812,1704117042088,-591.0,0.00031252,2]
[309780813,1704117042098,-483.44,0.00031324,2]
[309780814,1704117042107,-502.76844286,0.00031348,2]
[309780815,1704117042118,-728.93498016,0.00031423,4]
[309780816,1704117042129,-151.0,0.00031428,7]
[309780817,1704117042139,-155.0,0.00031428,2]
[309780818,1704117042149,-19043.88662784,0.00031428,4]
[309780819,1704117042158,-9432.30535012,0.0003143,4]
[309780820,1704117042168,-161.43,0.00031507,2]
[309780821,1704117042178,-226.0,0.00031566,5]
[309780822,1704117042188,-635.72,0.0003166,2]
[309780823,1704117042198,-152.63261688,0.00031732,2]
[309780824,1704117042207,-540.01254622,0.000319,2]
[309780825,1704117042217,-200.1374795,0.000319,2]
[309780826,1704117042227,-591.8047753,0.00031999,2]
[309780827,1704117042236,-103357.36582405,0.00032,2]
[309780828,1704117042247,-277965.18831391,0.00032,4]
[309780829,1704117042257,-186.67690597,0.00032,2]
[309780830,1704117042267,-157.34152932,0.00032083,2]
[309780831,1704117042276,-153.92,0.0003213,2]
[309780832,1704117042285,-470.98,0.00032277,2]
[309780833,1704117042294,-5132.56283437,0.00032288,4]
[309780834,1704117042306,-169.16,0.00032313,2]
[309780835,1704117042315,-177.74,0.00032334,2]
[309780836,1704117042325,-529.02,0.00032376,2]
[309780837,1704117042335,-635.72,0.00032639,2]
[309780838,1704117042344,-159.65,0.00032877,15]
[309780839,1704117042354,-213.73811274,0.00032877,2]
[309780840,1704117042363,-325.86,0.0003288,2]
[309780841,1704117042372,-325.86,0.0003288,2]
[309780842,1704117042382,-325.86,0.0003288,2]
[309780843,1704117042392,-325.86,0.0003288,2]
[309780844,1704117042401,-325.86,0.0003288,2]
[309780845,1704117042410,-325.86,0.0003288,2]
[309780846,1704117042420,-325.86,0.0003288,2]
[309780847,1704117042429,-325.86,0.0003288,2]
[309780848,1704117042439,-202.0,0.000329,2]
[309780849,1704117042448,-443.04,0.00032911,2]
[309780850,1704117042458,-294.51798002,0.00032981,6]
[309780851,1704117042467,-2000.0,0.00033,5]
[309780852,1704117042477,-600.0,0.00033,3]
[309780853,1704117042486,-153.92,0.00033126,2]
[309780854,1704117042495,-5132.56283437,0.00033385,5]
[309780855,1704117042505,-157.34152932,0.00033442,2]
[309780856,1704117042515,-390.55610074,0.000335,2]
[309780857,1704117042525,-205.0,0.00033576,13]
[309780858,1704117042535,-635.72,0.00033617,2]
[309780859,1704117042555,-3000.0,0.0003372,2]
[309780860,1704117042571,-190.59091182,0.00033726,2]
[309780861,1704117042581,-4309.69781178,0.00033736,2]
[309780862,1704117042591,-325.86,0.0003388,2]
[309780863,1704117042601,-6716.0,0.0003389,4]
[309780864,1704117042610,-150.0,0.000339,2]
[309780865,1704117042620,-150.0,0.000339,2]
[309780866,1704117042630,-150.0,0.000339,2]
[309780867,1704117042639,-150.0,0.000339,2]
[309780868,1704117042649,-150.0,0.000339,2]
[309780869,1704117042658,-150.0,0.000339,2]
[309780870,1704117042668,-150.0,0.000339,2]
[309780871,1704117042678,-150.0,0.000339,2]
[309780872,1704117042687,-150.0,0.000339,2]
[309780873,1704117042697,-150.0,0.000339,2]
[309780875,1704117042708,-150.0,0.000339,2]
[309780876,1704117042717,-150.0,0.000339,2]
[309780877,1704117042727,-150.0,0.000339,2]
[309780879,1704117042736,-150.0,0.000339,2]
[309780880,1704117042746,-150.0,0.000339,2]
[309780881,1704117042755,-150.0,0.000339,2]
[309780882,1704117042766,-150.0,0.000339,2]
[309780883,1704117042776,-150.0,0.000339,2]
[309780884,1704117042786,-150.0,0.000339,2]
[309780885,1704117042795,-150.0,0.000339,2]
[309780886,1704117042805,-1000.0,0.00034,4]
[309780887,1704117042816,-203.84769879,0.00034,5]
[309780888,1704117043015,-250.0,0.00034,2]
[309780889,1704117043027,-153.92,0.00034122,2]
[309780890,1704117043037,-250.0,0.00034274,2]
[309780891,1704117043047,-5132.56283437,0.00034483,6]
[309780892,1704117043057,-206.33255861,0.000345,2]
[309780893,1704117043066,-4274.698924,0.0003452,2]
[309780894,1704117043076,-4150.210081,0.0003452,2]
[309780895,1704117043086,-40609.639787,0.0003452,2]
[309780896,1704117043095,-5533.613442,0.0003452,2]
[309780897,1704117043105,-635.72,0.00034596,2]
[309780898,1704117043115,-180.0,0.00034658,2]
[309780899,1704117043125,-294.51798002,0.00034712,7]
[309780900,1704117043134,-5000.0,0.0003475,3]
[309780901,1704117043145,-6412.048387,0.00034794,2]
[309780902,1704117043154,-6225.315121,0.00034794,2]
[309780903,1704117043164,-60914.45968,0.00034794,2]
[309780904,1704117043173,-8300.420163,0.00034794,2]
[309780905,1704117043183,-1997.0,0.000348,3]
[309780907,1704117043192,-157.34152932,0.000348,2]
[309780908,1704117043201,-153.2113516,0.000348,24]
[309780910,1704117043210,-323.81348289,0.000348,2]
[309780911,1704117043219,-177.74,0.00034824,2]
[309780912,1704117043229,-997.47505243,0.00034885,2]
[309780913,1704117043238,-540.01254622,0.00034885,2]
[309780914,1704117043247,-200.0,0.0003489,2]
[309780915,1704117043256,-190.59091182,0.0003489,2]
[309780916,1704117043265,-325.86,0.0003489,2]
[309780917,1704117043275,-150.0,0.00034899,2]
[309780918,1704117043284,-150.0,0.00034899,2]
[309780919,1704117043293,-250.0,0.00034899,2]
[309780920,1704117043302,-250.0,0.00034899,2]
[309780921,1704117043312,-264.38108609,0.00034899,2]
[309780922,1704117043321,-164.58935839,0.00034899,2]
[309780923,1704117043331,-150.0,0.00034899,2]
[309780924,1704117043341,-150.0,0.00034899,2]
[309780925,1704117043350,-250.0,0.00034899,2]
[309780926,1704117043360,-250.0,0.00034899,2]
[309780927,1704117043369,-229.9287798,0.000349,2]
[309780928,1704117043379,-2922143.91852369,0.000349,3]
[309780929,1704117043389,-7160.92728425,0.000349,2]
[309780930,1704117043398,-26959.0,0.000349,3]
[309780931,1704117043408,-196486.92981618,0.000349,2]
[309780932,1704117043417,-150.0,0.0003493,2]
[309780933,1704117043426,-250.0,0.0003493,2]
[309780934,1704117043436,-250.0,0.0003493,2]
[309780935,1704117043445,-8549.397849,0.00034931,2]
[309780936,1704117043455,-8300.420162,0.00034931,2]
[309780937,1704117043464,-81219.279574,0.00034931,2]
[309780938,1704117043473,-11067.226884,0.00034931,2]
[309780939,1704117043483,-6824.24242246,0.0003499,5]
[309780940,1704117043492,-150.0,0.00034999,2]
[309780941,1704117043501,-250.0,0.00034999,2]
[309780942,1704117043511,-250.0,0.00034999,2]
[309780943,1704117043520,-333.2382739,0.00034999,30]
[309780944,1704117043530,-500.0,0.00034999,4]
[309780945,1704117043539,-500.0,0.00034999,4]
[309780946,1704117043549,-402.68222514,0.00034999,4]
[309780947,1704117043562,-578.96477208,0.00034999,4]
[309780948,1704117043573,-500.0,0.00034999,4]
[309780949,1704117043583,-500.0,0.00034999,4]
[309780950,1704117043593,-444.05455374,0.00034999,4]
[309780951,1704117043602,-355.08286518,0.00034999,7]
[309780952,1704117043613,-201.05679757,0.00035,2]
[309780953,1704117043622,-709.26793944,0.00035,2]
[309780954,1704117043631,-309.7767,0.00035,2]
[309780955,1704117043641,-207265.04982262,0.00035,7]
[309780956,1704117043650,-205.71203237,0.00035,4]
[309780957,1704117043659,-1877.27347324,0.00035,14]
[309780958,1704117043669,-650.0,0.00035,3]
[309780959,1704117043678,-150.0,0.00035067,2]
[309780960,1704117043687,-250.0,0.00035067,2]
[309780961,1704117043697,-250.0,0.00035067,2]
[309780962,1704117043707,-10686.747312,0.00035068,2]
[309780963,1704117043718,-10375.525203,0.00035068,2]
[309780964,1704117043728,-101524.099467,0.00035068,2]
[309780965,1704117043737,-13834.033605,0.00035068,2]
[309780966,1704117043747,-153.92,0.00035118,2]
[309780967,1704117043757,-443.04,0.00035175,2]
[309780968,1704117043768,-55555.0,0.00035242,3]
[309780969,1704117043777,-14961.446237,0.00035342,2]
[309780970,1704117043787,-14525.735284,0.00035342,2]
[309780971,1704117043797,-142133.739255,0.00035342,2]
[309780972,1704117043807,-19367.647047,0.00035342,2]
[309780973,1704117043816,-171.71082753,0.00035373,2]
[309780974,1704117043826,-222.22222,0.00035398,2]
[309780975,1704117043835,-222.22222,0.00035498,2]
[309780976,1704117043845,-470.98,0.00035505,2]
[309780977,1704117043855,-635.72,0.00035574,2]
[309780978,1704117043864,-5132.56283437,0.0003558,8]
[309780979,1704117043873,-167.0,0.00035584,2]
[309780980,1704117043883,-222.22222,0.00035598,2]
[309780981,1704117043894,-3000.0,0.000356,4]
[309780982,1704117043904,-200.0,0.00035606,2]
[309780983,1704117043915,-200.0,0.00035606,2]
[309780984,1704117043925,-3000.0,0.0003561,4]
[309780985,1704117043935,-529.02,0.00035614,2]
[309780986,1704117043944,-343.07613935,0.00035616,2]
[309780987,1704117043953,-521.35091417,0.00035616,2]
[309780988,1704117043963,-202.67945938,0.00035616,2]
[309780989,1704117043972,-563.19397131,0.00035616,2]
[309780990,1704117043982,-163.6337452,0.00035616,2]
[309780991,1704117043992,-518.96966942,0.00035616,2]
[309780992,1704117044003,-583.98623779,0.00035616,2]
[309780993,1704117044012,-500.0,0.00035616,2]
[309780994,1704117044022,-512.98694578,0.00035616,2]
[309780995,1704117044033,-515.64966747,0.00035616,2]
[309780996,1704117044042,-545.31927953,0.00035616,2]
[309780997,1704117044052,-525.75814227,0.00035616,2]
[309780998,1704117044061,-196.53167401,0.00035616,2]
[309780999,1704117044071,-426.19429175,0.00035616,2]
[309781000,1704117044081,-208.85963913,0.00035616,2]
[309781001,1704117044091,-500.0,0.00035616,2]
[309781002,1704117044101,-504.20581463,0.00035616,2]
[309781003,1704117044110,-500.0,0.00035616,2]
[309781004,1704117044120,-500.0,0.00035616,2]
[309781005,1704117044130,-508.64566785,0.00035616,2]
[309781006,1704117044140,-508.54250146,0.00035616,2]
[309781007,1704117044149,-521.23507328,0.00035616,2]
[309781008,1704117044159,-500.0,0.00035616,2]
[309781009,1704117044168,-500.0,0.00035616,2]
[309781010,1704117044177,-506.79167781,0.00035616,2]
[309781011,1704117044186,-507.41669049,0.00035616,2]
[309781012,1704117044195,-529.12537681,0.00035616,2]
[309781013,1704117044204,-503.50371177,0.00035616,2]
[309781014,1704117044214,-243.92150107,0.00035616,2]
[309781015,1704117044223,-519.50059947,0.00035616,2]
[309781016,1704117044231,-506.84345612,0.00035616,2]
[309781017,1704117044240,-500.0,0.00035616,2]
[309781018,1704117044250,-534.610976,0.00035616,2]
[309781019,1704117044259,-625.26388913,0.00035616,2]
[309781020,1704117044268,-523.09264233,0.00035616,2]
[309781021,1704117044277,-500.0,0.00035616,2]
[309781022,1704117044286,-500.0,0.00035616,2]
[309781023,1704117044296,-500.0,0.00035616,2]
[309781024,1704117044305,-500.0,0.00035616,2]
[309781025,1704117044314,-500.0,0.00035616,2]
[309781026,1704117044323,-500.0,0.00035616,2]
[309781027,1704117044333,-500.0,0.00035616,2]
[309781028,1704117044343,-500.0,0.00035616,2]
[309781029,1704117044352,-500.0,0.00035616,2]
[309781030,1704117044362,-500.0,0.00035616,2]
[309781031,1704117044371,-338.95721144,0.00035616,2]
[309781032,1704117044380,-500.0,0.00035616,2]
[309781033,1704117044389,-532.17480147,0.00035616,2]
[309781034,1704117044399,-174.49389098,0.00035616,2]
[309781035,1704117044408,-500.0,0.00035616,2]
[309781036,1704117044418,-507.07103895,0.00035616,2]
[309781037,1704117044427,-500.0,0.00035616,2]
[309781038,1704117044436,-551.019314,0.00035616,2]
[309781039,1704117044446,-514.72,0.00035616,2]
[309781040,1704117044456,-500.0,0.00035616,2]
[309781041,1704117044466,-500.0,0.00035616,2]
[309781042,1704117044476,-500.0,0.00035616,2]
[309781043,1704117044485,-523.74899441,0.00035616,2]
[309781044,1704117044495,-500.0,0.00035616,2]
[309781045,1704117044504,-510.30425275,0.00035616,2]
[309781046,1704117044513,-500.0,0.00035616,2]
[309781047,1704117044522,-512.31617637,0.00035616,2]
[309781048,1704117044531,-500.0,0.00035616,2]
[309781049,1704117044541,-500.0,0.00035616,2]
[309781050,1704117044550,-500.0,0.00035616,2]
[309781051,1704117044559,-500.0,0.00035616,2]
[309781052,1704117044568,-582.45586293,0.00035616,2]
[309781053,1704117044577,-500.0,0.00035616,2]
[309781054,1704117044586,-500.0,0.00035616,2]
[309781055,1704117044595,-500.0,0.00035616,2]
[309781056,1704117044604,-513.1518797,0.00035616,2]
[309781057,1704117044613,-500.0,0.00035616,2]
[309781058,1704117044622,-516.71541725,0.00035616,2]
[309781059,1704117044631,-500.0,0.00035616,2]
[309781060,1704117044640,-500.0,0.00035616,2]
[309781061,1704117044649,-500.0,0.00035616,2]
[309781062,1704117044658,-500.0,0.00035616,2]
[309781063,1704117044667,-500.0,0.00035616,2]
[309781064,1704117044677,-579.98549972,0.00035616,2]
[309781065,1704117044686,-500.0,0.00035616,2]
[309781066,1704117044695,-500.0,0.00035616,2]
[309781067,1704117044705,-524.53137953,0.00035616,2]
[309781068,1704117044715,-500.0,0.00035616,2]
[309781069,1704117044727,-500.0,0.00035616,2]
[309781070,1704117044736,-521.50477304,0.00035616,2]
[309781071,1704117044745,-500.0,0.00035616,2]
[309781072,1704117044755,-500.0,0.00035616,2]
[309781073,1704117044766,-500.0,0.00035616,2]
[309781074,1704117044775,-516.65805138,0.00035616,2]
[309781075,1704117044785,-450.0,0.00035616,2]
[309781076,1704117044795,-500.0,0.00035616,2]
[309781077,1704117044805,-500.0,0.00035616,2]
[309781078,1704117044814,-507.70198114,0.00035616,2]
[309781079,1704117044824,-515.88725427,0.00035616,2]
[309781080,1704117044835,-500.0,0.00035616,2]
[309781081,1704117044844,-509.13405978,0.00035616,2]
[309781082,1704117044855,-518.02668067,0.00035616,2]
[309781083,1704117044865,-515.23011141,0.00035616,2]
[309781084,1704117044875,-509.62436381,0.00035616,2]
[309781085,1704117044885,-514.01959754,0.00035616,2]
[309781086,1704117044895,-523.83193583,0.00035616,2]
[309781087,1704117044904,-497.0,0.00035616,2]
[309781088,1704117044914,-524.29994051,0.00035616,2]
[309781089,1704117044924,-500.0,0.00035616,2]
[309781090,1704117044933,-529.05104663,0.00035616,2]
[309781091,1704117044944,-593.41299261,0.00035616,2]
[309781092,1704117044953,-649.32430273,0.00035616,2]
[309781093,1704117044962,-539.543156,0.00035616,2]
[309781094,1704117044972,-500.0,0.00035616,2]
[309781095,1704117044982,-500.0,0.00035616,2]
[309781096,1704117044991,-500.0,0.00035616,2]
[309781097,1704117045000,-500.0,0.00035616,2]
[309781098,1704117045011,-500.0,0.00035616,2]
[309781099,1704117045020,-502.53335033,0.00035616,2]
[309781100,1704117045030,-503.88845798,0.00035616,2]
[309781101,1704117045040,-518.31428307,0.00035616,2]
[309781102,1704117045051,-500.0,0.00035616,2]
[309781103,1704117045061,-528.18132224,0.00035616,2]
[309781104,1704117045071,-500.0,0.00035616,2]
[309781105,1704117045080,-500.0,0.00035616,2]
[309781106,1704117045089,-500.0,0.00035616,2]
[309781107,1704117045099,-500.0,0.00035616,2]
[309781108,1704117045108,-520.87687859,0.00035616,2]
[309781109,1704117045118,-513.80855442,0.00035616,2]
[309781110,1704117045127,-505.71030351,0.00035616,2]
[309781111,1704117045136,-500.0,0.00035616,2]
[309781112,1704117045146,-500.0,0.00035616,2]
[309781113,1704117045155,-500.0,0.00035616,2]
[309781114,1704117045165,-228.97500523,0.00035616,2]
[309781115,1704117045174,-500.0,0.00035616,2]
[309781116,1704117045183,-500.0,0.00035616,2]
[309781117,1704117045194,-500.0,0.00035616,2]
[309781118,1704117045203,-162.43778215,0.00035616,2]
[309781119,1704117045212,-506.08146035,0.00035616,2]
[309781120,1704117045221,-500.0,0.00035616,2]
[309781121,1704117045230,-500.0,0.00035616,2]
[309781122,1704117045240,-366.6887735,0.00035616,2]
[309781123,1704117045248,-624.90406737,0.00035616,2]
[309781124,1704117045257,-500.0,0.00035616,2]
[309781125,1704117045266,-500.0,0.00035616,2]
[309781126,1704117045275,-531.73552937,0.00035616,2]
[309781127,1704117045284,-500.0,0.00035616,2]
[309781128,1704117045293,-500.0,0.00035616,2]
[309781129,1704117045303,-515.15870042,0.00035616,2]
[309781130,1704117045313,-500.0,0.00035616,2]
[309781131,1704117045323,-500.0,0.00035616,2]
[309781132,1704117045333,-514.39740443,0.00035616,2]
[309781133,1704117045342,-204.11680653,0.00035616,2]
[309781134,1704117045351,-500.0,0.00035616,2]
[309781135,1704117045361,-507.70039862,0.00035616,2]
[309781136,1704117045370,-500.0,0.00035616,2]
[309781137,1704117045380,-542.56021051,0.00035616,2]
[309781138,1704117045389,-500.0,0.00035616,2]
[309781139,1704117045398,-507.30027825,0.00035616,2]
[309781140,1704117045407,-511.26854154,0.00035616,2]
[309781141,1704117045417,-500.41533778,0.00035616,2]
[309781142,1704117045426,-544.01987322,0.00035616,2]
[309781143,1704117045436,-596.11,0.00035616,2]
[309781144,1704117045445,-236.34184362,0.00035616,2]
[309781145,1704117045455,-500.0,0.00035616,2]
[309781146,1704117045465,-628.75229021,0.00035616,2]
[309781147,1704117045474,-500.0,0.00035616,2]
[309781148,1704117045485,-500.0,0.00035616,2]
[309781149,1704117045495,-500.0,0.00035616,2]
[309781150,1704117045505,-500.0,0.00035616,2]
[309781151,1704117045514,-500.0,0.00035616,2]
[309781152,1704117045524,-500.0,0.00035616,2]
[309781153,1704117045533,-525.14812506,0.00035616,2]
[309781154,1704117045542,-500.0,0.00035616,2]
[309781155,1704117045552,-500.0,0.00035616,2]
[309781156,1704117045565,-500.0,0.00035616,2]
[309781157,1704117045574,-500.0,0.00035616,2]
[309781158,1704117045585,-500.0,0.00035616,2]
[309781159,1704117045594,-500.0,0.00035616,2]
[309781160,1704117045604,-500.0,0.00035616,2]
[309781161,1704117045613,-500.0,0.00035616,2]
[309781162,1704117045623,-500.0,0.00035616,2]
[309781163,1704117045633,-500.0,0.00035616,2]
[309781164,1704117045643,-500.0,0.00035616,2]
[309781165,1704117045652,-500.0,0.00035616,2]
[309781169,1704117045766,-240.69961177,0.00035616,2]
[309781171,1704117045792,-506.38641425,0.00035616,2]
[309781173,1704117045801,-500.0,0.00035616,2]
[309781175,1704117045810,-506.86628959,0.00035616,2]
[309781176,1704117045820,-504.36545448,0.00035616,2]
[309781177,1704117045829,-588.99,0.00035616,2]
[309781178,1704117045838,-518.11718509,0.00035616,2]
[309781179,1704117045848,-531.09255104,0.00035616,2]
[309781180,1704117045857,-529.19844084,0.00035616,2]
[309781181,1704117045866,-525.3676381,0.00035616,2]
[309781182,1704117045876,-500.0,0.00035616,2]
[309781183,1704117045886,-515.13256906,0.00035616,2]
[309781184,1704117045895,-533.75314588,0.00035616,2]
[309781185,1704117045904,-527.94823402,0.00035616,2]
[309781186,1704117045914,-502.73329573,0.00035616,2]
[309781187,1704117045923,-536.7815524,0.00035616,2]
[309781188,1704117045932,-500.0,0.00035616,2]
[309781189,1704117045941,-509.66347529,0.00035616,2]
[309781190,1704117045951,-500.0,0.00035616,2]
[309781191,1704117045960,-534.01136829,0.00035616,2]
[309781192,1704117045969,-527.63798055,0.00035616,2]
[309781193,1704117045978,-537.48189296,0.00035616,2]